[Event "*** SCC Grand Prix: Titled Tuesday Blitz"]
[Site "Chess.com"]
[Date "2020.07.14"]
[Round "7"]
[White "swimmerchess"]
[Black "PavelShkapenko"]
[Result "1-0"]
[WhiteElo "2821"]
[BlackElo "2595"]
[TimeControl "180+1"]
[EndTime "11:19:58 PDT"]
[Termination "swimmerchess won by resignation"]

1. e4 {[%clk 0:03:00.9]} 1... c5 {[%clk 0:02:58.8]} 2. Nf3 {[%clk 0:03:00]} 2...
e6 {[%clk 0:02:59.4]} 3. d4 {[%clk 0:03:00.3]} 3... cxd4 {[%clk 0:02:59.4]} 4.
Nxd4 {[%clk 0:03:01.2]} 4... Nf6 {[%clk 0:03:00]} 5. Nc3 {[%clk 0:03:01.5]} 5...
Nc6 {[%clk 0:03:00.6]} 6. Ndb5 {[%clk 0:03:01.4]} 6... Bb4 {[%clk 0:03:00.1]} 7.
a3 {[%clk 0:03:00.5]} 7... Bxc3+ {[%clk 0:03:00.5]} 8. Nxc3 {[%clk 0:03:01.4]}
8... d5 {[%clk 0:03:01]} 9. exd5 {[%clk 0:03:01.4]} 9... exd5 {[%clk 0:03:01.6]}
10. Bd3 {[%clk 0:03:01.8]} 10... d4 {[%clk 0:03:02.3]} 11. Ne4 {[%clk
0:02:48.8]} 11... Bf5 {[%clk 0:03:01.6]} 12. Nd6+ {[%clk 0:02:38.6]} 12... Qxd6
{[%clk 0:03:01.3]} 13. Bxf5 {[%clk 0:02:39.5]} 13... O-O {[%clk 0:02:31.8]} 14.
O-O {[%clk 0:02:38.7]} 14... Rfe8 {[%clk 0:02:32.3]} 15. Bg5 {[%clk 0:02:29.9]}
15... Qd5 {[%clk 0:02:28.7]} 16. Qd3 {[%clk 0:02:12.7]} 16... Ne4 {[%clk
0:02:23.5]} 17. Bxe4 {[%clk 0:02:07.6]} 17... Rxe4 {[%clk 0:02:09.9]} 18. f3
{[%clk 0:01:45.9]} 18... Re6 {[%clk 0:01:52.1]} 19. Bf4 {[%clk 0:01:43.3]} 19...
Rae8 {[%clk 0:01:31.2]} 20. Rad1 {[%clk 0:01:41.2]} 20... a5 {[%clk 0:01:22.6]}
21. Rd2 {[%clk 0:01:27.3]} 21... Qc5 {[%clk 0:01:03.5]} 22. Rfd1 {[%clk
0:01:25.6]} 22... h6 {[%clk 0:00:55.6]} 23. Bg3 {[%clk 0:01:23]} 23... Re3
{[%clk 0:00:53.6]} 24. Qf1 {[%clk 0:01:22.6]} 24... Ne5 {[%clk 0:00:47.5]} 25.
Bf2 {[%clk 0:01:20.9]} 25... Nc4 {[%clk 0:00:41.8]} 26. Rxd4 {[%clk 0:01:18.4]}
26... Nxb2 {[%clk 0:00:41.6]} 27. Rd8 {[%clk 0:01:04.5]} 27... Qc7 {[%clk
0:00:20.9]} 28. R1d7 {[%clk 0:00:55.5]} 28... Qe5 {[%clk 0:00:16.7]} 29. Bxe3
{[%clk 0:00:48.1]} 29... Qxe3+ {[%clk 0:00:16.6]} 30. Kh1 {[%clk 0:00:44]} 30...
Rxd8 {[%clk 0:00:17]} 31. Rxd8+ {[%clk 0:00:43.9]} 31... Kh7 {[%clk 0:00:17.6]}
32. Rd7 {[%clk 0:00:40.5]} 32... Qxa3 {[%clk 0:00:15.6]} 33. Rxb7 {[%clk
0:00:35]} 33... f6 {[%clk 0:00:13.9]} 34. h4 {[%clk 0:00:30.3]} 34... Qc3 {[%clk
0:00:13.8]} 35. h5 {[%clk 0:00:19.2]} 35... a4 {[%clk 0:00:12.7]} 36. Kh2 {[%clk
0:00:17.5]} 36... a3 {[%clk 0:00:12.9]} 37. Qb5 {[%clk 0:00:17.1]} 37... Qxc2
{[%clk 0:00:10.3]} 38. Qd7 {[%clk 0:00:13.4]} 1-0

[Event "*** SCC Grand Prix: Titled Tuesday Blitz"]
[Site "Chess.com"]
[Date "2020.07.14"]
[Round "7"]
[White "Tekushka"]
[Black "PrinceMurad09"]
[Result "0-1"]
[WhiteElo "2355"]
[BlackElo "2515"]
[TimeControl "180+1"]
[EndTime "11:20:00 PDT"]
[Termination "PrinceMurad09 won on time"]

1. d4 {[%clk 0:03:00.9]} 1... Nf6 {[%clk 0:02:59.5]} 2. c4 {[%clk 0:03:00.5]}
2... c5 {[%clk 0:02:59.9]} 3. d5 {[%clk 0:03:00.2]} 3... b5 {[%clk 0:03:00.5]}
4. cxb5 {[%clk 0:02:59.7]} 4... a6 {[%clk 0:03:01]} 5. bxa6 {[%clk 0:02:59.4]}
5... g6 {[%clk 0:03:01.6]} 6. Nc3 {[%clk 0:02:58.4]} 6... Bg7 {[%clk 0:03:02.3]}
7. e4 {[%clk 0:02:58.6]} 7... Qa5 {[%clk 0:03:02.9]} 8. Bd2 {[%clk 0:02:50.7]}
8... Bxa6 {[%clk 0:03:03]} 9. Bxa6 {[%clk 0:02:39.3]} 9... Qxa6 {[%clk
0:03:03.9]} 10. Nge2 {[%clk 0:02:37.7]} 10... O-O {[%clk 0:03:04]} 11. O-O
{[%clk 0:02:37.2]} 11... d6 {[%clk 0:03:04.6]} 12. Bg5 {[%clk 0:02:28.7]} 12...
Nbd7 {[%clk 0:03:03.7]} 13. Qd2 {[%clk 0:02:23.7]} 13... Rfb8 {[%clk 0:03:03.7]}
14. b3 {[%clk 0:02:22]} 14... Qa5 {[%clk 0:02:46.3]} 15. Rab1 {[%clk 0:02:20.2]}
15... Qb4 {[%clk 0:02:44.1]} 16. f3 {[%clk 0:02:14.3]} 16... Ne5 {[%clk
0:02:26.2]} 17. a4 {[%clk 0:01:57.6]} 17... Kf8 {[%clk 0:02:03.3]} 18. Nb5
{[%clk 0:01:52.3]} 18... Qxd2 {[%clk 0:02:01.9]} 19. Bxd2 {[%clk 0:01:52.3]}
19... Ne8 {[%clk 0:02:02.3]} 20. Bc3 {[%clk 0:01:37.5]} 20... Nd7 {[%clk
0:02:00.6]} 21. Bxg7+ {[%clk 0:01:36.6]} 21... Kxg7 {[%clk 0:02:01.5]} 22. Nec3
{[%clk 0:01:34.2]} 22... g5 {[%clk 0:01:58.4]} 23. Rfc1 {[%clk 0:01:31.2]} 23...
Ne5 {[%clk 0:01:58]} 24. Kf1 {[%clk 0:01:25.8]} 24... h5 {[%clk 0:01:57.6]} 25.
Ke2 {[%clk 0:01:25.5]} 25... Rb7 {[%clk 0:01:57.1]} 26. g3 {[%clk 0:01:22.9]}
26... g4 {[%clk 0:01:46.5]} 27. f4 {[%clk 0:01:19.1]} 27... Nf3 {[%clk
0:01:46.9]} 28. h3 {[%clk 0:01:12.9]} 28... Nf6 {[%clk 0:01:46.2]} 29. hxg4
{[%clk 0:01:00.5]} 29... hxg4 {[%clk 0:01:47.1]} 30. Rh1 {[%clk 0:01:00.4]}
30... Nd4+ {[%clk 0:01:47.2]} 31. Kd3 {[%clk 0:00:46.3]} 31... Nf3 {[%clk
0:01:35.9]} 32. Ke3 {[%clk 0:00:43.4]} 32... Ra6 {[%clk 0:01:33.8]} 33. Rbd1
{[%clk 0:00:31]} 33... Kg6 {[%clk 0:01:33.3]} 34. Rb1 {[%clk 0:00:19.7]} 34...
Nh5 {[%clk 0:01:33]} 35. Kf2 {[%clk 0:00:17.2]} 35... e6 {[%clk 0:01:31.7]} 36.
Rbd1 {[%clk 0:00:14.4]} 36... e5 {[%clk 0:01:30.3]} 37. f5+ {[%clk 0:00:13.4]}
37... Kg5 {[%clk 0:01:30.8]} 38. Rb1 {[%clk 0:00:11.2]} 38... Rb8 {[%clk
0:01:25.1]} 39. Ne2 {[%clk 0:00:10.4]} 39... Nf6 {[%clk 0:01:22.5]} 40. Nec3
{[%clk 0:00:09.8]} 40... Nd2 {[%clk 0:01:18]} 41. Ke3 {[%clk 0:00:08.9]} 41...
Nf3 {[%clk 0:01:14.6]} 42. Rb2 {[%clk 0:00:08.2]} 42... Nh5 {[%clk 0:01:13.5]}
43. Rg2 {[%clk 0:00:07.7]} 43... Nd4 {[%clk 0:01:03.4]} 44. Rb1 {[%clk 0:00:05]}
44... Kf6 {[%clk 0:00:58.4]} 45. Rbb2 {[%clk 0:00:04.7]} 45... Kg7 {[%clk
0:00:56.8]} 46. Rb1 {[%clk 0:00:03.8]} 46... Rh8 {[%clk 0:00:53.8]} 47. Rbb2
{[%clk 0:00:03.6]} 47... Nf6 {[%clk 0:00:53.6]} 48. Rh2 {[%clk 0:00:03.9]} 48...
Rh3 {[%clk 0:00:50.4]} 49. Rxh3 {[%clk 0:00:03.1]} 49... gxh3 {[%clk 0:00:51.3]}
50. Kf2 {[%clk 0:00:02.9]} 50... Ng4+ {[%clk 0:00:50.1]} 51. Kg1 {[%clk
0:00:02.4]} 51... Nf3+ {[%clk 0:00:46.6]} 52. Kh1 {[%clk 0:00:02.2]} 52... Kf6
{[%clk 0:00:46.3]} 0-1

[Event "*** SCC Grand Prix: Titled Tuesday Blitz"]
[Site "Chess.com"]
[Date "2020.07.14"]
[Round "7"]
[White "chesslh19"]
[Black "KonstantinB_1983"]
[Result "0-1"]
[WhiteElo "2134"]
[BlackElo "2410"]
[TimeControl "180+1"]
[EndTime "11:20:00 PDT"]
[Termination "KonstantinB_1983 won by resignation"]

1. e4 {[%clk 0:03:00.9]} 1... d5 {[%clk 0:02:59.3]} 2. exd5 {[%clk 0:03:00.3]}
2... Qxd5 {[%clk 0:02:59.2]} 3. Nc3 {[%clk 0:02:59.7]} 3... Qd6 {[%clk
0:02:58.8]} 4. d4 {[%clk 0:02:59.7]} 4... Nf6 {[%clk 0:02:58.6]} 5. Nf3 {[%clk
0:02:59.9]} 5... a6 {[%clk 0:02:57.3]} 6. Be3 {[%clk 0:02:49.9]} 6... Bg4 {[%clk
0:02:56.1]} 7. h3 {[%clk 0:02:39.1]} 7... Bh5 {[%clk 0:02:50.8]} 8. g4 {[%clk
0:02:21]} 8... Bg6 {[%clk 0:02:49.4]} 9. Bg2 {[%clk 0:02:12.8]} 9... Nc6 {[%clk
0:02:48.7]} 10. Qd2 {[%clk 0:01:55.7]} 10... Ne4 {[%clk 0:02:47]} 11. Nxe4
{[%clk 0:01:54.3]} 11... Bxe4 {[%clk 0:02:46.2]} 12. c3 {[%clk 0:01:35.7]} 12...
Qd5 {[%clk 0:02:44.4]} 13. Qe2 {[%clk 0:01:27.8]} 13... e6 {[%clk 0:02:39.8]}
14. O-O {[%clk 0:01:19.7]} 14... Be7 {[%clk 0:02:37.4]} 15. Ne1 {[%clk
0:01:12.9]} 15... Bxg2 {[%clk 0:02:35.9]} 16. Nxg2 {[%clk 0:01:13.8]} 16... h5
{[%clk 0:02:27.3]} 17. Nf4 {[%clk 0:01:06.2]} 17... Qe4 {[%clk 0:02:23.3]} 18.
Qd3 {[%clk 0:00:59.2]} 18... Qxd3 {[%clk 0:02:19.8]} 19. Nxd3 {[%clk 0:00:59.1]}
19... hxg4 {[%clk 0:02:20]} 20. hxg4 {[%clk 0:01:00]} 20... Rh4 {[%clk
0:02:17.1]} 21. f3 {[%clk 0:00:59.4]} 21... O-O-O {[%clk 0:02:16.3]} 22. Kg2
{[%clk 0:00:59.3]} 22... Rhh8 {[%clk 0:02:03.2]} 23. Rh1 {[%clk 0:00:59.3]}
23... Rhg8 {[%clk 0:02:02.7]} 24. Rad1 {[%clk 0:00:50.1]} 24... Bd6 {[%clk
0:01:58]} 25. Bg5 {[%clk 0:00:41.5]} 25... f6 {[%clk 0:01:56.4]} 26. Bf4 {[%clk
0:00:41.6]} 26... Rde8 {[%clk 0:01:51.8]} 27. Bxd6 {[%clk 0:00:40.4]} 27... cxd6
{[%clk 0:01:51.1]} 28. Rde1 {[%clk 0:00:37.7]} 28... Kd7 {[%clk 0:01:49.2]} 29.
f4 {[%clk 0:00:34.5]} 29... b6 {[%clk 0:01:46.9]} 30. Kf3 {[%clk 0:00:34.5]}
30... Ne7 {[%clk 0:01:42.8]} 31. Rh2 {[%clk 0:00:29]} 31... g5 {[%clk
0:01:33.2]} 32. Rh7 {[%clk 0:00:26.5]} 32... Ref8 {[%clk 0:01:17.5]} 33. Kg3
{[%clk 0:00:17.1]} 33... d5 {[%clk 0:01:00.3]} 34. f5 {[%clk 0:00:13.6]} 34...
Rh8 {[%clk 0:00:56.6]} 35. fxe6+ {[%clk 0:00:12.6]} 35... Kd6 {[%clk 0:00:56.2]}
36. Rxh8 {[%clk 0:00:12.2]} 36... Rxh8 {[%clk 0:00:55.1]} 37. Rf1 {[%clk
0:00:12]} 37... Kxe6 {[%clk 0:00:52.7]} 38. Nb4 {[%clk 0:00:10.5]} 38... a5
{[%clk 0:00:51.5]} 39. Nd3 {[%clk 0:00:08.8]} 39... Ng6 {[%clk 0:00:49.9]} 40.
Re1+ {[%clk 0:00:08]} 40... Kd6 {[%clk 0:00:49.2]} 41. Rf1 {[%clk 0:00:08.4]}
41... Ke6 {[%clk 0:00:48.2]} 42. Re1+ {[%clk 0:00:08.7]} 42... Kf7 {[%clk
0:00:48.4]} 43. Rf1 {[%clk 0:00:09]} 43... Ne7 {[%clk 0:00:47.4]} 44. Ne5+
{[%clk 0:00:08.4]} 44... Ke6 {[%clk 0:00:46.6]} 45. Nd3 {[%clk 0:00:08.5]} 45...
f5 {[%clk 0:00:42.9]} 46. gxf5+ {[%clk 0:00:06.3]} 46... Nxf5+ {[%clk 0:00:42]}
47. Kg2 {[%clk 0:00:03.3]} 47... Ne3+ {[%clk 0:00:41.2]} 0-1

[Event "*** SCC Grand Prix: Titled Tuesday Blitz"]
[Site "Chess.com"]
[Date "2020.07.14"]
[Round "7"]
[White "Batica1984"]
[Black "GMNickPert"]
[Result "1-0"]
[WhiteElo "2879"]
[BlackElo "2693"]
[TimeControl "180+1"]
[EndTime "11:20:01 PDT"]
[Termination "Batica1984 won by checkmate"]

1. e4 {[%clk 0:03:00.9]} 1... c5 {[%clk 0:02:59.7]} 2. Nc3 {[%clk 0:02:59.6]}
2... Nc6 {[%clk 0:02:59.6]} 3. Bb5 {[%clk 0:02:57.5]} 3... Nd4 {[%clk
0:02:59.7]} 4. Nge2 {[%clk 0:02:48.8]} 4... Nxb5 {[%clk 0:02:56.6]} 5. Nxb5
{[%clk 0:02:48.4]} 5... d6 {[%clk 0:02:54]} 6. d4 {[%clk 0:02:43.7]} 6... a6
{[%clk 0:02:52.1]} 7. Nbc3 {[%clk 0:02:42.7]} 7... cxd4 {[%clk 0:02:52.3]} 8.
Qxd4 {[%clk 0:02:42.3]} 8... Nf6 {[%clk 0:02:51.2]} 9. Bg5 {[%clk 0:02:40.8]}
9... e5 {[%clk 0:02:31.3]} 10. Qd3 {[%clk 0:02:31.5]} 10... Be7 {[%clk
0:02:30.8]} 11. O-O-O {[%clk 0:02:28.1]} 11... O-O {[%clk 0:02:27.3]} 12. Bxf6
{[%clk 0:02:27.6]} 12... Bxf6 {[%clk 0:02:28.2]} 13. Qxd6 {[%clk 0:02:25.1]}
13... Qa5 {[%clk 0:02:25]} 14. Nd5 {[%clk 0:02:05.8]} 14... Bg5+ {[%clk
0:02:20.8]} 15. Kb1 {[%clk 0:02:03]} 15... Be6 {[%clk 0:02:16.3]} 16. Qxe5
{[%clk 0:01:58.2]} 16... Bd8 {[%clk 0:01:44.1]} 17. Nef4 {[%clk 0:01:56.3]}
17... Bxd5 {[%clk 0:01:34.3]} 18. Nxd5 {[%clk 0:01:53.7]} 18... Kh8 {[%clk
0:01:19.6]} 19. Rd3 {[%clk 0:01:48.8]} 19... Rc8 {[%clk 0:01:14.5]} 20. Rhd1
{[%clk 0:01:38.1]} 20... Rc6 {[%clk 0:01:11]} 21. Qd4 {[%clk 0:01:27.6]} 21...
b5 {[%clk 0:01:06]} 22. Qb4 {[%clk 0:01:23.3]} 22... Qxb4 {[%clk 0:01:05.1]} 23.
Nxb4 {[%clk 0:01:23.3]} 23... Rc8 {[%clk 0:01:05.7]} 24. Nxa6 {[%clk 0:01:19.5]}
24... Bb6 {[%clk 0:01:04.4]} 25. f3 {[%clk 0:01:16.8]} 25... g6 {[%clk
0:00:59.7]} 26. Nb4 {[%clk 0:01:16.1]} 26... Bc5 {[%clk 0:00:53.8]} 27. Nd5
{[%clk 0:01:12.7]} 27... Kg7 {[%clk 0:00:50.6]} 28. a3 {[%clk 0:01:12.6]} 28...
h5 {[%clk 0:00:49.6]} 29. Rb3 {[%clk 0:01:10.3]} 29... Rb8 {[%clk 0:00:49.2]}
30. Nc3 {[%clk 0:01:10.2]} 30... b4 {[%clk 0:00:49.3]} 31. axb4 {[%clk 0:01:09]}
31... Bxb4 {[%clk 0:00:48.6]} 32. Nd5 {[%clk 0:01:08.8]} 32... Bd6 {[%clk
0:00:48.9]} 33. Rxb8 {[%clk 0:01:08]} 33... Bxb8 {[%clk 0:00:49.8]} 34. h3
{[%clk 0:01:06.5]} 34... f5 {[%clk 0:00:49.1]} 35. exf5 {[%clk 0:01:05.7]} 35...
gxf5 {[%clk 0:00:48.5]} 36. c4 {[%clk 0:01:05.7]} 36... Kf7 {[%clk 0:00:48.5]}
37. Kc2 {[%clk 0:01:05.8]} 37... Rg8 {[%clk 0:00:48.5]} 38. Rd2 {[%clk
0:01:04.9]} 38... Ke6 {[%clk 0:00:49]} 39. b4 {[%clk 0:01:04.6]} 39... Be5
{[%clk 0:00:47.6]} 40. Kb3 {[%clk 0:01:04.5]} 40... Ra8 {[%clk 0:00:44.2]} 41.
f4 {[%clk 0:01:00.2]} 41... Bd6 {[%clk 0:00:44]} 42. c5 {[%clk 0:00:59.8]} 42...
Bb8 {[%clk 0:00:43.7]} 43. Kc4 {[%clk 0:01:00.1]} 43... Ra1 {[%clk 0:00:43.6]}
44. Re2+ {[%clk 0:00:59.2]} 44... Kd7 {[%clk 0:00:43.4]} 45. Re7+ {[%clk
0:00:58.6]} 45... Kd8 {[%clk 0:00:43.6]} 46. Rf7 {[%clk 0:00:57.1]} 46... Ba7
{[%clk 0:00:41.2]} 47. Rxf5 {[%clk 0:00:53]} 47... Kd7 {[%clk 0:00:40.3]} 48.
Rf7+ {[%clk 0:00:51.9]} 48... Kc8 {[%clk 0:00:39.4]} 49. Kb5 {[%clk 0:00:50.5]}
49... h4 {[%clk 0:00:38.7]} 50. Kc6 {[%clk 0:00:49.9]} 50... Bxc5 {[%clk
0:00:35.8]} 51. bxc5 {[%clk 0:00:46.8]} 51... Kb8 {[%clk 0:00:34.6]} 52. Nb6
{[%clk 0:00:45.8]} 52... Re1 {[%clk 0:00:10.4]} 53. Rb7# {[%clk 0:00:44]} 1-0

[Event "*** SCC Grand Prix: Titled Tuesday Blitz"]
[Site "Chess.com"]
[Date "2020.07.14"]
[Round "7"]
[White "Gandrade2"]
[Black "DishonorOnYourCow"]
[Result "1-0"]
[WhiteElo "2129"]
[BlackElo "2320"]
[TimeControl "180+1"]
[EndTime "11:20:01 PDT"]
[Termination "Gandrade2 won on time"]

1. d4 {[%clk 0:03:00.9]} 1... Nf6 {[%clk 0:02:59.2]} 2. c4 {[%clk 0:03:00.9]}
2... g6 {[%clk 0:02:59.4]} 3. Nc3 {[%clk 0:02:59.8]} 3... d5 {[%clk 0:02:59.2]}
4. cxd5 {[%clk 0:03:00]} 4... Nxd5 {[%clk 0:03:00.1]} 5. Bd2 {[%clk 0:03:00.5]}
5... Bg7 {[%clk 0:02:56.4]} 6. e4 {[%clk 0:03:00.5]} 6... Nxc3 {[%clk
0:02:55.1]} 7. Bxc3 {[%clk 0:03:01.4]} 7... O-O {[%clk 0:02:50.2]} 8. Bc4 {[%clk
0:02:56.7]} 8... c5 {[%clk 0:02:46.4]} 9. d5 {[%clk 0:02:56.8]} 9... Bxc3+
{[%clk 0:02:23.5]} 10. bxc3 {[%clk 0:02:57.7]} 10... Qa5 {[%clk 0:01:56.1]} 11.
Qd2 {[%clk 0:02:45.9]} 11... b5 {[%clk 0:01:42.9]} 12. Bd3 {[%clk 0:02:30.4]}
12... a6 {[%clk 0:01:33.3]} 13. h4 {[%clk 0:02:27.6]} 13... c4 {[%clk
0:01:23.7]} 14. Bc2 {[%clk 0:02:27.5]} 14... Qc7 {[%clk 0:01:00.7]} 15. h5
{[%clk 0:02:22.2]} 15... e6 {[%clk 0:00:50.2]} 16. d6 {[%clk 0:02:20.8]} 16...
Qd7 {[%clk 0:00:47]} 17. e5 {[%clk 0:02:06]} 17... Bb7 {[%clk 0:00:41.4]} 18. f3
{[%clk 0:01:52.4]} 18... Nc6 {[%clk 0:00:34.2]} 19. Ne2 {[%clk 0:01:51.9]} 19...
Nxe5 {[%clk 0:00:30.5]} 20. Qe3 {[%clk 0:01:50.6]} 20... f6 {[%clk 0:00:29.2]}
21. Rd1 {[%clk 0:01:48.5]} 21... Rad8 {[%clk 0:00:25.1]} 22. Nf4 {[%clk
0:01:33.8]} 22... g5 {[%clk 0:00:20.3]} 23. Nh3 {[%clk 0:01:31.2]} 23... Qf7
{[%clk 0:00:17.5]} 24. h6 {[%clk 0:01:31]} 24... Kh8 {[%clk 0:00:15.5]} 25. Nxg5
{[%clk 0:01:30.6]} 25... fxg5 {[%clk 0:00:14.5]} 26. Qxe5+ {[%clk 0:01:30.9]}
26... Qf6 {[%clk 0:00:15.4]} 27. Qg3 {[%clk 0:01:15.2]} 27... e5 {[%clk
0:00:14.1]} 28. Rh5 {[%clk 0:01:12]} 28... Rxd6 {[%clk 0:00:13]} 29. Rxd6 {[%clk
0:01:11.3]} 29... Qxd6 {[%clk 0:00:13.9]} 30. Qxg5 {[%clk 0:01:09.6]} 30... Rg8
{[%clk 0:00:12.2]} 31. Qf5 {[%clk 0:01:07.2]} 31... Qe7 {[%clk 0:00:11.1]} 32.
Kf2 {[%clk 0:01:03.2]} 32... Bc8 {[%clk 0:00:08.2]} 33. Qe4 {[%clk 0:01:01.5]}
33... Re8 {[%clk 0:00:06.9]} 34. Rxe5 {[%clk 0:00:59.6]} 34... Qa7+ {[%clk
0:00:03.4]} 35. Qe3 {[%clk 0:00:56.3]} 35... Qxe3+ {[%clk 0:00:01.9]} 36. Rxe3
{[%clk 0:00:56.3]} 36... Rd8 {[%clk 0:00:02]} 37. Re2 {[%clk 0:00:48.2]} 37...
Bd7 {[%clk 0:00:02.3]} 38. Rd2 {[%clk 0:00:47.6]} 38... Kg8 {[%clk 0:00:01.9]}
39. Bf5 {[%clk 0:00:46.7]} 39... b4 {[%clk 0:00:01.2]} 40. cxb4 {[%clk
0:00:43.8]} 40... c3 {[%clk 0:00:01.3]} 41. Bxh7+ {[%clk 0:00:30.5]} 1-0

[Event "*** SCC Grand Prix: Titled Tuesday Blitz"]
[Site "Chess.com"]
[Date "2020.07.14"]
[Round "7"]
[White "Nayemhaque22"]
[Black "Caterpiller35"]
[Result "1/2-1/2"]
[WhiteElo "2234"]
[BlackElo "2441"]
[TimeControl "180+1"]
[EndTime "11:20:02 PDT"]
[Termination "Game drawn - insufficient material"]

1. e4 {[%clk 0:03:00.9]} 1... c5 {[%clk 0:02:59.9]} 2. Nf3 {[%clk 0:03:00.4]}
2... Nc6 {[%clk 0:03:00.3]} 3. Bb5 {[%clk 0:03:00.1]} 3... g6 {[%clk 0:03:00.2]}
4. O-O {[%clk 0:02:59.2]} 4... Bg7 {[%clk 0:03:00.2]} 5. c3 {[%clk 0:02:59]}
5... Nf6 {[%clk 0:03:00.2]} 6. Re1 {[%clk 0:02:57.3]} 6... O-O {[%clk
0:02:59.8]} 7. d4 {[%clk 0:02:56.3]} 7... d5 {[%clk 0:02:59.5]} 8. e5 {[%clk
0:02:55.8]} 8... Ne4 {[%clk 0:02:59.7]} 9. Nbd2 {[%clk 0:02:50.9]} 9... Bf5
{[%clk 0:02:58.9]} 10. Nxe4 {[%clk 0:02:40]} 10... dxe4 {[%clk 0:02:58.3]} 11.
Bxc6 {[%clk 0:02:39.4]} 11... bxc6 {[%clk 0:02:59.2]} 12. Nh4 {[%clk 0:02:36.2]}
12... cxd4 {[%clk 0:02:59.2]} 13. cxd4 {[%clk 0:02:35.4]} 13... c5 {[%clk
0:02:58.2]} 14. Nxf5 {[%clk 0:02:34.1]} 14... gxf5 {[%clk 0:02:58.2]} 15. Be3
{[%clk 0:02:25.5]} 15... cxd4 {[%clk 0:02:57.8]} 16. Qxd4 {[%clk 0:02:24.7]}
16... Qxd4 {[%clk 0:02:57.6]} 17. Bxd4 {[%clk 0:02:24.4]} 17... Rfd8 {[%clk
0:02:58.2]} 18. Rad1 {[%clk 0:02:23.2]} 18... Rd5 {[%clk 0:02:52.3]} 19. Bc3
{[%clk 0:02:17.6]} 19... Rad8 {[%clk 0:02:48.6]} 20. Rxd5 {[%clk 0:02:05]} 20...
Rxd5 {[%clk 0:02:49.5]} 21. f3 {[%clk 0:02:05.6]} 21... Bxe5 {[%clk 0:02:41.6]}
22. fxe4 {[%clk 0:01:59.6]} 22... Bxc3 {[%clk 0:02:34.3]} 23. bxc3 {[%clk
0:01:58.8]} 23... Re5 {[%clk 0:02:32.2]} 24. Kf2 {[%clk 0:01:55.4]} 24... fxe4
{[%clk 0:02:16.4]} 25. Ke3 {[%clk 0:01:54]} 25... f5 {[%clk 0:02:16.3]} 26. g4
{[%clk 0:01:52.6]} 26... e6 {[%clk 0:02:14.4]} 27. Rd1 {[%clk 0:01:39.4]} 27...
Ra5 {[%clk 0:02:12.2]} 28. Rd7 {[%clk 0:01:33]} 28... Rxa2 {[%clk 0:02:08.2]}
29. gxf5 {[%clk 0:01:32.7]} 29... exf5 {[%clk 0:02:07.9]} 30. Rd5 {[%clk
0:01:32.2]} 30... Rxh2 {[%clk 0:02:03.8]} 31. Rxf5 {[%clk 0:01:31.3]} 31... Rh3+
{[%clk 0:02:01]} 32. Kd4 {[%clk 0:01:27.9]} 32... Rd3+ {[%clk 0:02:00.4]} 33.
Kc4 {[%clk 0:01:26.1]} 33... Rf3 {[%clk 0:01:57.7]} 34. Re5 {[%clk 0:01:25.4]}
34... e3 {[%clk 0:01:57.1]} 35. Kd4 {[%clk 0:01:24.4]} 35... Kf7 {[%clk
0:01:55.7]} 36. c4 {[%clk 0:01:23.9]} 36... Kf6 {[%clk 0:01:50.6]} 37. Re8
{[%clk 0:01:23.5]} 37... h5 {[%clk 0:01:41.4]} 38. c5 {[%clk 0:01:22.6]} 38...
Kf7 {[%clk 0:01:34]} 39. Re5 {[%clk 0:01:21.5]} 39... h4 {[%clk 0:01:31.5]} 40.
c6 {[%clk 0:01:18.9]} 40... Rf6 {[%clk 0:01:31.4]} 41. Kd5 {[%clk 0:01:11]}
41... Rf1 {[%clk 0:01:24.1]} 42. Rxe3 {[%clk 0:01:09.2]} 42... Rd1+ {[%clk
0:01:23.4]} 43. Kc5 {[%clk 0:01:08.5]} 43... Rc1+ {[%clk 0:01:23.3]} 44. Kd6
{[%clk 0:01:08]} 44... Kf6 {[%clk 0:01:23.4]} 45. Ra3 {[%clk 0:01:04.5]} 45...
Rd1+ {[%clk 0:01:17.9]} 46. Kc7 {[%clk 0:01:03.7]} 46... Rg1 {[%clk 0:01:17.5]}
47. Kb7 {[%clk 0:01:01.6]} 47... Rb1+ {[%clk 0:01:15.6]} 48. Kxa7 {[%clk
0:01:00.2]} 48... Kg5 {[%clk 0:01:15.6]} 49. Rc3 {[%clk 0:00:57.9]} 49... Rf1
{[%clk 0:01:11.3]} 50. c7 {[%clk 0:00:54.6]} 50... Rf8 {[%clk 0:01:09.5]} 51.
Rd3 {[%clk 0:00:53.7]} 51... Kg4 {[%clk 0:01:07.8]} 52. Rd8 {[%clk 0:00:51.6]}
52... Rf7 {[%clk 0:01:07.7]} 53. Rg8+ {[%clk 0:00:50.6]} 53... Kf3 {[%clk
0:01:05.1]} 54. Kb6 {[%clk 0:00:46.6]} 54... Rxc7 {[%clk 0:01:04.5]} 55. Kxc7
{[%clk 0:00:47.3]} 55... h3 {[%clk 0:01:05.4]} 56. Rh8 {[%clk 0:00:46.6]} 56...
Kg2 {[%clk 0:01:05.3]} 57. Kd7 {[%clk 0:00:45.8]} 57... h2 {[%clk 0:01:05.2]}
58. Rxh2+ {[%clk 0:00:45.8]} 58... Kxh2 {[%clk 0:01:05.2]} 1/2-1/2